[Event "Titled Tuesday Blitz March 22 Late 2022"]
[White "Gabrielian, Artur"]
[Black "Rosen, Eric"]
[WhiteFideId "4131002"]
[BlackFideId "2032562"]
[WhiteElo "2440"]
[BlackElo "2362"]
[Result "1-0"]
[Round "06"]
[TimeControl "180+1"]
[Date "2022.03.22"]
[WhiteClock "0:00:10"]
[BlackClock "0:00:01"]

1. e4 {[%clk 0:03:00]}  c5 {[%clk 0:03:00]} 2. Nc3 {[%clk 0:02:59]}  a6 {[%clk 0:02:59]} 3. g3 {[%clk 0:02:58]}  b5 {[%clk 0:02:59]} 4. Bg2 {[%clk 0:02:58]}  Bb7 {[%clk 0:03:00]} 5. f4 {[%clk 0:02:58]}  e6 {[%clk 0:03:00]} 6. Nh3 {[%clk 0:02:57]}  b4 {[%clk 0:02:59]} 7. Ne2 {[%clk 0:02:57]}  d5 {[%clk 0:02:59]} 8. f5 {[%clk 0:02:57]}  exf5 {[%clk 0:02:45]} 9. exf5 {[%clk 0:02:55]}  Nf6 {[%clk 0:02:33]} 10. O-O {[%clk 0:02:50]}  Be7 {[%clk 0:02:26]} 11. Nef4 {[%clk 0:02:50]}  O-O {[%clk 0:02:19]} 12. d3 {[%clk 0:02:50]}  h6 {[%clk 0:01:45]} 13. g4 {[%clk 0:02:45]}  Nh7 {[%clk 0:01:39]} 14. Nh5 {[%clk 0:02:44]}  Nd7 {[%clk 0:01:34]} 15. N3f4 {[%clk 0:02:35]}  Ndf6 {[%clk 0:01:29]} 16. Be3 {[%clk 0:02:21]}  Qc7 {[%clk 0:01:08]} 17. Qf3 {[%clk 0:01:33]}  Rad8 {[%clk 0:00:56]} 18. Rae1 {[%clk 0:01:31]}  Rfe8 {[%clk 0:00:51]} 19. Qg3 {[%clk 0:01:31]}  d4 {[%clk 0:00:48]} 20. Bd2 {[%clk 0:01:24]}  Bxg2 {[%clk 0:00:48]} 21. Qxg2 {[%clk 0:01:23]}  Bd6 {[%clk 0:00:40]} 22. h4 {[%clk 0:01:07]}  Rxe1 {[%clk 0:00:20]} 23. Rxe1 {[%clk 0:01:07]}  Re8 {[%clk 0:00:20]} 24. Rxe8+ {[%clk 0:01:02]}  Nxe8 {[%clk 0:00:21]} 25. Nd5 {[%clk 0:00:31]}  Qd8 {[%clk 0:00:18]} 26. Qe4 {[%clk 0:00:30]}  Nef6 {[%clk 0:00:14]} 27. Ndxf6+ {[%clk 0:00:25]}  Nxf6 {[%clk 0:00:14]} 28. Nxf6+ {[%clk 0:00:25]}  Qxf6 {[%clk 0:00:15]} 29. g5 {[%clk 0:00:24]}  hxg5 {[%clk 0:00:13]} 30. hxg5 {[%clk 0:00:24]}  Qe7 {[%clk 0:00:13]} 31. Qa8+ {[%clk 0:00:18]}  Kh7 {[%clk 0:00:13]} 32. g6+ {[%clk 0:00:15]}  fxg6 {[%clk 0:00:12]} 33. Qh1+ {[%clk 0:00:14]}  Kg8 {[%clk 0:00:10]} 34. fxg6 {[%clk 0:00:15]}  Qe5 {[%clk 0:00:07]} 35. Qa8+ {[%clk 0:00:13]}  Bb8 {[%clk 0:00:07]} 36. Qg2 {[%clk 0:00:13]}  a5 {[%clk 0:00:03]} 37. b3 {[%clk 0:00:12]}  Qf6 {[%clk 0:00:02]} 38. Qd5+ {[%clk 0:00:11]}  Kf8 {[%clk 0:00:01]} 39. Qxc5+ {[%clk 0:00:11]}  Ke8 {[%clk 0:00:01]} 40. Qb5+ {[%clk 0:00:10]} 1-0


[Site "https://www.chess.com"]

[Event "Titled Tuesday Blitz March 22 Late 2022"]
[White "Gokerkan, Cem Kaan"]
[Black "Godzwon, Iwo"]
[WhiteFideId "6336760"]
[BlackFideId "21802483"]
[WhiteElo "2382"]
[BlackElo "2201"]
[Result "0-1"]
[Round "06"]
[TimeControl "180+1"]
[Date "2022.03.22"]
[WhiteClock "0:00:01"]
[BlackClock "0:00:34"]

1. c4 {[%clk 0:03:00]}  Nf6 {[%clk 0:02:53]} 2. Nc3 {[%clk 0:03:00]}  d5 {[%clk 0:02:50]} 3. cxd5 {[%clk 0:03:00]}  Nxd5 {[%clk 0:02:51]} 4. e4 {[%clk 0:03:00]}  Nb4 {[%clk 0:02:50]} 5. d3 {[%clk 0:02:53]}  c5 {[%clk 0:02:49]} 6. a3 {[%clk 0:02:53]}  N4c6 {[%clk 0:02:47]} 7. Be3 {[%clk 0:02:47]}  Nd4 {[%clk 0:02:47]} 8. g3 {[%clk 0:02:37]}  Nbc6 {[%clk 0:02:47]} 9. Bg2 {[%clk 0:02:37]}  Be6 {[%clk 0:02:36]} 10. Rc1 {[%clk 0:02:35]}  g6 {[%clk 0:02:32]} 11. Nf3 {[%clk 0:02:35]}  Bg7 {[%clk 0:02:29]} 12. Ng5 {[%clk 0:02:29]}  Bb3 {[%clk 0:02:27]} 13. Qd2 {[%clk 0:02:25]}  h6 {[%clk 0:02:25]} 14. Nf3 {[%clk 0:02:21]}  Be6 {[%clk 0:02:26]} 15. Bxd4 {[%clk 0:02:12]}  cxd4 {[%clk 0:02:22]} 16. Ne2 {[%clk 0:02:10]}  Qb6 {[%clk 0:02:19]} 17. Nf4 {[%clk 0:02:07]}  Bd7 {[%clk 0:02:02]} 18. O-O {[%clk 0:02:02]}  e6 {[%clk 0:02:00]} 19. Qc2 {[%clk 0:01:22]}  O-O {[%clk 0:01:57]} 20. Nd2 {[%clk 0:01:22]}  Ne5 {[%clk 0:01:45]} 21. b4 {[%clk 0:01:11]}  Bb5 {[%clk 0:01:43]} 22. Nc4 {[%clk 0:01:09]}  Qa6 {[%clk 0:01:37]} 23. Qb3 {[%clk 0:00:34]}  Rfc8 {[%clk 0:01:25]} 24. Nxe5 {[%clk 0:00:19]}  Bxe5 {[%clk 0:01:24]} 25. Rfe1 {[%clk 0:00:08]}  Bxf4 {[%clk 0:01:11]} 26. gxf4 {[%clk 0:00:09]}  Bxd3 {[%clk 0:01:11]} 27. Red1 {[%clk 0:00:09]}  Be2 {[%clk 0:00:52]} 28. Re1 {[%clk 0:00:03]}  d3 {[%clk 0:00:51]} 29. Qb2 {[%clk 0:00:04]}  Rc4 {[%clk 0:00:45]} 30. Bf1 {[%clk 0:00:03]}  Bxf1 {[%clk 0:00:35]} 31. Rxc4 {[%clk 0:00:02]}  Qxc4 {[%clk 0:00:34]} 32. Rxf1 {[%clk 0:00:01]}  Qxe4 {[%clk 0:00:34]} 0-1


[Site "https://www.chess.com"]

[Event "Titled Tuesday Blitz March 22 Late 2022"]
[White "Grischuk, Alexander"]
[Black "Kamsky, Gata"]
[WhiteFideId "4126025"]
[BlackFideId "2000024"]
[WhiteElo "2762"]
[BlackElo "2645"]
[Result "1-0"]
[Round "06"]
[TimeControl "180+1"]
[Date "2022.03.22"]
[WhiteClock "0:00:04"]
[BlackClock "0:00:01"]

1. e4 {[%clk 0:03:00]}  g6 {[%clk 0:02:52]} 2. d4 {[%clk 0:03:01]}  Bg7 {[%clk 0:02:51]} 3. Nf3 {[%clk 0:03:01]}  d6 {[%clk 0:02:51]} 4. Bd3 {[%clk 0:03:02]}  Nc6 {[%clk 0:02:48]} 5. O-O {[%clk 0:03:02]}  Nf6 {[%clk 0:02:41]} 6. Re1 {[%clk 0:02:57]}  e5 {[%clk 0:02:35]} 7. dxe5 {[%clk 0:02:33]}  Nxe5 {[%clk 0:02:34]} 8. Nxe5 {[%clk 0:02:34]}  dxe5 {[%clk 0:02:34]} 9. a4 {[%clk 0:02:32]}  O-O {[%clk 0:02:19]} 10. Nd2 {[%clk 0:02:32]}  Qe7 {[%clk 0:02:17]} 11. b3 {[%clk 0:02:30]}  Rd8 {[%clk 0:02:16]} 12. Nc4 {[%clk 0:02:22]}  Nh5 {[%clk 0:02:12]} 13. Qf3 {[%clk 0:02:21]}  a5 {[%clk 0:01:58]} 14. Bd2 {[%clk 0:01:48]}  b6 {[%clk 0:01:57]} 15. Rad1 {[%clk 0:01:49]}  Bb7 {[%clk 0:01:53]} 16. Ne3 {[%clk 0:01:44]}  Nf6 {[%clk 0:01:52]} 17. Bc3 {[%clk 0:01:41]}  h5 {[%clk 0:01:40]} 18. Nc4 {[%clk 0:01:39]}  Nd7 {[%clk 0:01:38]} 19. Bb2 {[%clk 0:01:32]}  Qe8 {[%clk 0:01:33]} 20. Ba3 {[%clk 0:01:31]}  Bf8 {[%clk 0:01:25]} 21. Bc1 {[%clk 0:01:31]}  Qe7 {[%clk 0:01:22]} 22. Qg3 {[%clk 0:01:26]}  Bg7 {[%clk 0:01:21]} 23. h3 {[%clk 0:01:20]}  Qe6 {[%clk 0:01:12]} 24. Bg5 {[%clk 0:00:54]}  Bf6 {[%clk 0:01:10]} 25. Be3 {[%clk 0:00:55]}  Qe7 {[%clk 0:01:08]} 26. Bc1 {[%clk 0:00:53]}  Qe6 {[%clk 0:01:04]} 27. Ne3 {[%clk 0:00:51]}  Nc5 {[%clk 0:01:02]} 28. Bc4 {[%clk 0:00:52]}  Nxe4 {[%clk 0:00:14]} 29. Qxg6+ {[%clk 0:00:20]}  fxg6 {[%clk 0:00:13]} 30. Bxe6+ {[%clk 0:00:21]}  Kg7 {[%clk 0:00:13]} 31. Bd5 {[%clk 0:00:16]}  Nc5 {[%clk 0:00:13]} 32. Bb2 {[%clk 0:00:14]}  c6 {[%clk 0:00:11]} 33. Bc4 {[%clk 0:00:12]}  e4 {[%clk 0:00:10]} 34. Bxf6+ {[%clk 0:00:11]}  Kxf6 {[%clk 0:00:11]} 35. Be2 {[%clk 0:00:12]}  Ne6 {[%clk 0:00:09]} 36. Kf1 {[%clk 0:00:10]}  Nd4 {[%clk 0:00:08]} 37. Rd2 {[%clk 0:00:10]}  b5 {[%clk 0:00:08]} 38. Red1 {[%clk 0:00:10]}  Ke5 {[%clk 0:00:07]} 39. c3 {[%clk 0:00:08]}  Ne6 {[%clk 0:00:06]} 40. axb5 {[%clk 0:00:07]}  Rxd2 {[%clk 0:00:05]} 41. Rxd2 {[%clk 0:00:07]}  cxb5 {[%clk 0:00:06]} 42. Bxb5 {[%clk 0:00:08]}  Nc5 {[%clk 0:00:06]} 43. Nc4+ {[%clk 0:00:08]}  Ke6 {[%clk 0:00:06]} 44. Rd6+ {[%clk 0:00:07]}  Ke7 {[%clk 0:00:05]} 45. Rxg6 {[%clk 0:00:07]}  Rd8 {[%clk 0:00:03]} 46. b4 {[%clk 0:00:05]}  axb4 {[%clk 0:00:03]} 47. cxb4 {[%clk 0:00:06]}  Ne6 {[%clk 0:00:03]} 48. Ne3 {[%clk 0:00:06]}  Rd2 {[%clk 0:00:02]} 49. Bc4 {[%clk 0:00:05]}  Bc8 {[%clk 0:00:01]} 50. Bxe6 {[%clk 0:00:04]} 1-0


[Site "https://www.chess.com"]

[Event "Titled Tuesday Blitz March 22 Late 2022"]
[White "Hamitevici, Vladimir"]
[Black "Muetsch, Annmarie"]
[WhiteFideId "13902393"]
[BlackFideId "12971367"]
[WhiteElo "2359"]
[BlackElo "2249"]
[Result "1-0"]
[Round "06"]
[TimeControl "180+1"]
[Date "2022.03.22"]
[WhiteClock "0:00:32"]
[BlackClock "0:00:29"]

1. a3 {[%clk 0:02:58]}  d5 {[%clk 0:02:53]} 2. Nf3 {[%clk 0:02:49]}  Nd7 {[%clk 0:02:44]} 3. g3 {[%clk 0:02:42]}  e5 {[%clk 0:02:43]} 4. d3 {[%clk 0:02:42]}  Ngf6 {[%clk 0:02:41]} 5. Bg2 {[%clk 0:02:42]}  Bd6 {[%clk 0:02:33]} 6. O-O {[%clk 0:02:41]}  O-O {[%clk 0:02:28]} 7. Nc3 {[%clk 0:02:40]}  c6 {[%clk 0:02:26]} 8. e4 {[%clk 0:02:40]}  Qc7 {[%clk 0:02:18]} 9. Nh4 {[%clk 0:02:38]}  Nb6 {[%clk 0:02:07]} 10. Bg5 {[%clk 0:02:29]}  d4 {[%clk 0:01:44]} 11. Ne2 {[%clk 0:02:24]}  Ne8 {[%clk 0:01:38]} 12. f4 {[%clk 0:02:21]}  f6 {[%clk 0:01:29]} 13. fxe5 {[%clk 0:02:20]}  Bxe5 {[%clk 0:01:28]} 14. Bd2 {[%clk 0:02:17]}  c5 {[%clk 0:01:25]} 15. Nf5 {[%clk 0:02:09]}  Nd6 {[%clk 0:01:02]} 16. Nf4 {[%clk 0:01:48]}  Nxf5 {[%clk 0:00:58]} 17. exf5 {[%clk 0:01:49]}  Bxf5 {[%clk 0:00:51]} 18. Nd5 {[%clk 0:01:49]}  Qd7 {[%clk 0:00:39]} 19. Rxf5 {[%clk 0:01:34]}  Nxd5 {[%clk 0:00:38]} 20. Qf3 {[%clk 0:01:31]}  Ne3 {[%clk 0:00:37]} 21. Bxe3 {[%clk 0:01:25]}  dxe3 {[%clk 0:00:38]} 22. Qd5+ {[%clk 0:01:22]}  Qxd5 {[%clk 0:00:38]} 23. Bxd5+ {[%clk 0:01:23]}  Kh8 {[%clk 0:00:38]} 24. c3 {[%clk 0:01:19]}  Rad8 {[%clk 0:00:37]} 25. Bc4 {[%clk 0:01:19]}  a6 {[%clk 0:00:36]} 26. a4 {[%clk 0:01:18]}  g6 {[%clk 0:00:37]} 27. Rf3 {[%clk 0:01:16]}  e2 {[%clk 0:00:37]} 28. Re1 {[%clk 0:01:10]}  Rb8 {[%clk 0:00:37]} 29. Rxe2 {[%clk 0:01:07]}  b5 {[%clk 0:00:37]} 30. axb5 {[%clk 0:01:04]}  axb5 {[%clk 0:00:38]} 31. Bxb5 {[%clk 0:00:57]}  Rxb5 {[%clk 0:00:37]} 32. Rxe5 {[%clk 0:00:57]}  Rxb2 {[%clk 0:00:36]} 33. Rxc5 {[%clk 0:00:57]}  Kg7 {[%clk 0:00:34]} 34. Rf2 {[%clk 0:00:49]}  Rb1+ {[%clk 0:00:33]} 35. Kg2 {[%clk 0:00:48]}  f5 {[%clk 0:00:32]} 36. d4 {[%clk 0:00:44]}  Re8 {[%clk 0:00:31]} 37. Rd2 {[%clk 0:00:41]}  Ree1 {[%clk 0:00:31]} 38. d5 {[%clk 0:00:40]}  Rg1+ {[%clk 0:00:30]} 39. Kf2 {[%clk 0:00:34]}  Rh1 {[%clk 0:00:29]} 40. Ke3 {[%clk 0:00:32]} 1-0


[Site "https://www.chess.com"]

[Event "Titled Tuesday Blitz March 22 Late 2022"]
[White "Holt, Conrad"]
[Black "Janaszak, Dawid"]
[WhiteFideId "2034387"]
[BlackFideId "1119206"]
[WhiteElo "2586"]
[BlackElo "2199"]
[Result "1-0"]
[Round "06"]
[TimeControl "180+1"]
[Date "2022.03.22"]
[WhiteClock "0:00:47"]
[BlackClock "0:00:07"]

1. d4 {[%clk 0:02:29]}  Nf6 {[%clk 0:02:59]} 2. c4 {[%clk 0:02:28]}  g6 {[%clk 0:02:59]} 3. Nc3 {[%clk 0:02:28]}  Bg7 {[%clk 0:02:59]} 4. e4 {[%clk 0:02:27]}  d6 {[%clk 0:02:59]} 5. Nf3 {[%clk 0:02:28]}  O-O {[%clk 0:02:59]} 6. h3 {[%clk 0:02:28]}  Nbd7 {[%clk 0:02:57]} 7. Bd3 {[%clk 0:02:25]}  e5 {[%clk 0:02:55]} 8. O-O {[%clk 0:02:25]}  exd4 {[%clk 0:02:48]} 9. Nxd4 {[%clk 0:02:25]}  Re8 {[%clk 0:02:47]} 10. Bg5 {[%clk 0:02:22]}  h6 {[%clk 0:02:37]} 11. Bh4 {[%clk 0:02:20]}  c6 {[%clk 0:02:27]} 12. Re1 {[%clk 0:02:16]}  Qb6 {[%clk 0:02:25]} 13. Nb3 {[%clk 0:02:15]}  Ne5 {[%clk 0:02:16]} 14. Bf1 {[%clk 0:02:07]}  Be6 {[%clk 0:02:11]} 15. Qxd6 {[%clk 0:01:57]}  Bxc4 {[%clk 0:01:10]} 16. Bxf6 {[%clk 0:01:52]}  Re6 {[%clk 0:01:10]} 17. Bxg7 {[%clk 0:01:33]}  Rxd6 {[%clk 0:01:04]} 18. Bxe5 {[%clk 0:01:31]}  Re6 {[%clk 0:00:51]} 19. Bd4 {[%clk 0:01:29]}  Qa6 {[%clk 0:00:48]} 20. Nc5 {[%clk 0:01:29]}  Qa5 {[%clk 0:00:42]} 21. Bxc4 {[%clk 0:01:23]}  Re7 {[%clk 0:00:39]} 22. a3 {[%clk 0:01:17]}  b5 {[%clk 0:00:36]} 23. b4 {[%clk 0:01:06]}  Qc7 {[%clk 0:00:36]} 24. Bb3 {[%clk 0:01:04]}  a5 {[%clk 0:00:34]} 25. Bf6 {[%clk 0:01:03]}  Ree8 {[%clk 0:00:34]} 26. e5 {[%clk 0:00:59]}  a4 {[%clk 0:00:24]} 27. Ba2 {[%clk 0:00:58]}  Rf8 {[%clk 0:00:21]} 28. e6 {[%clk 0:00:56]}  Qf4 {[%clk 0:00:18]} 29. exf7+ {[%clk 0:00:54]}  Kh7 {[%clk 0:00:17]} 30. Be5 {[%clk 0:00:52]}  Qd2 {[%clk 0:00:15]} 31. N3e4 {[%clk 0:00:51]}  Qd8 {[%clk 0:00:07]} 32. Nf6+ {[%clk 0:00:49]}  Kh8 {[%clk 0:00:07]} 33. Ne6 {[%clk 0:00:47]} 1-0


[Site "https://www.chess.com"]

[Event "Titled Tuesday Blitz March 22 Late 2022"]
[White "Ibarra Jerez, Jose Carlos"]
[Black "Artemiev, Vladislav"]
[WhiteFideId "2226332"]
[BlackFideId "24101605"]
[WhiteElo "2626"]
[BlackElo "2811"]
[Result "0-1"]
[Round "06"]
[TimeControl "180+1"]
[Date "2022.03.22"]
[WhiteClock "0:00:26"]
[BlackClock "0:00:11"]

1. e4 {[%clk 0:03:00]}  e5 {[%clk 0:02:59]} 2. Nf3 {[%clk 0:03:00]}  Nc6 {[%clk 0:02:59]} 3. d4 {[%clk 0:02:55]}  exd4 {[%clk 0:02:58]} 4. Nxd4 {[%clk 0:02:55]}  Bc5 {[%clk 0:02:56]} 5. Nb3 {[%clk 0:02:55]}  Bb6 {[%clk 0:02:54]} 6. Qe2 {[%clk 0:02:55]}  a5 {[%clk 0:02:06]} 7. Nc3 {[%clk 0:02:51]}  a4 {[%clk 0:02:03]} 8. Nd2 {[%clk 0:02:52]}  a3 {[%clk 0:01:56]} 9. Nd5 {[%clk 0:02:50]}  Bd4 {[%clk 0:01:20]} 10. c3 {[%clk 0:02:47]}  Ba7 {[%clk 0:01:14]} 11. b3 {[%clk 0:02:37]}  Nge7 {[%clk 0:01:01]} 12. Bxa3 {[%clk 0:01:51]}  Bxf2+ {[%clk 0:01:00]} 13. Qxf2 {[%clk 0:01:51]}  Rxa3 {[%clk 0:01:01]} 14. Bc4 {[%clk 0:01:40]}  O-O {[%clk 0:00:59]} 15. O-O {[%clk 0:01:36]}  d6 {[%clk 0:00:59]} 16. Nf3 {[%clk 0:01:24]}  Ng6 {[%clk 0:00:58]} 17. Qg3 {[%clk 0:01:17]}  Nce5 {[%clk 0:00:35]} 18. Nxe5 {[%clk 0:01:15]}  Nxe5 {[%clk 0:00:35]} 19. Be2 {[%clk 0:01:01]}  Kh8 {[%clk 0:00:31]} 20. h3 {[%clk 0:00:47]}  Be6 {[%clk 0:00:26]} 21. Rf2 {[%clk 0:00:42]}  Bxd5 {[%clk 0:00:25]} 22. exd5 {[%clk 0:00:43]}  Qa8 {[%clk 0:00:24]} 23. Bf1 {[%clk 0:00:42]}  Rxb3 {[%clk 0:00:22]} 24. axb3 {[%clk 0:00:34]}  Qxa1 {[%clk 0:00:22]} 25. Kh2 {[%clk 0:00:32]}  Qa8 {[%clk 0:00:19]} 26. c4 {[%clk 0:00:30]}  Qe8 {[%clk 0:00:17]} 27. b4 {[%clk 0:00:30]}  b6 {[%clk 0:00:17]} 28. Rc2 {[%clk 0:00:28]}  Qe7 {[%clk 0:00:16]} 29. c5 {[%clk 0:00:26]}  bxc5 {[%clk 0:00:16]} 30. bxc5 {[%clk 0:00:27]}  dxc5 {[%clk 0:00:12]} 31. Qa3 {[%clk 0:00:26]}  Qd6 {[%clk 0:00:12]} 32. Qxc5 {[%clk 0:00:26]}  Nf3+ {[%clk 0:00:11]} 0-1


[Site "https://www.chess.com"]

[Event "Titled Tuesday Blitz March 22 Late 2022"]
[White "Indjic, Aleksandar"]
[Black "Taboas Rodriguez, Daniel"]
[WhiteFideId "911925"]
[BlackFideId "2208466"]
[WhiteElo "2616"]
[BlackElo "2429"]
[Result "1-0"]
[Round "06"]
[TimeControl "180+1"]
[Date "2022.03.22"]
[WhiteClock "0:00:54"]
[BlackClock "0:00:03"]

1. d4 {[%clk 0:03:00]}  Nf6 {[%clk 0:02:59]} 2. c4 {[%clk 0:03:01]}  g6 {[%clk 0:02:59]} 3. Nc3 {[%clk 0:03:01]}  Bg7 {[%clk 0:02:59]} 4. e4 {[%clk 0:03:00]}  d6 {[%clk 0:03:00]} 5. Be2 {[%clk 0:03:00]}  O-O {[%clk 0:02:59]} 6. Be3 {[%clk 0:03:00]}  Nc6 {[%clk 0:02:58]} 7. Nf3 {[%clk 0:02:57]}  Bg4 {[%clk 0:02:43]} 8. d5 {[%clk 0:02:54]}  Bxf3 {[%clk 0:02:43]} 9. gxf3 {[%clk 0:02:53]}  Ne5 {[%clk 0:02:42]} 10. f4 {[%clk 0:02:53]}  Ned7 {[%clk 0:02:42]} 11. h4 {[%clk 0:02:52]}  e6 {[%clk 0:02:42]} 12. dxe6 {[%clk 0:02:46]}  fxe6 {[%clk 0:02:41]} 13. h5 {[%clk 0:02:47]}  Qe7 {[%clk 0:02:27]} 14. hxg6 {[%clk 0:02:46]}  hxg6 {[%clk 0:02:27]} 15. Qc2 {[%clk 0:02:41]}  Kf7 {[%clk 0:02:14]} 16. O-O-O {[%clk 0:02:38]}  e5 {[%clk 0:02:03]} 17. f5 {[%clk 0:02:36]}  gxf5 {[%clk 0:02:01]} 18. Bg5 {[%clk 0:02:21]}  fxe4 {[%clk 0:01:42]} 19. Nd5 {[%clk 0:02:20]}  Qd8 {[%clk 0:01:42]} 20. c5 {[%clk 0:02:19]}  Nxc5 {[%clk 0:01:23]} 21. Bxf6 {[%clk 0:02:11]}  Bxf6 {[%clk 0:01:24]} 22. Rh7+ {[%clk 0:02:08]}  Kg8 {[%clk 0:00:58]} 23. Rxc7 {[%clk 0:02:07]}  Rc8 {[%clk 0:00:45]} 24. Rxc8 {[%clk 0:01:16]}  Qxc8 {[%clk 0:00:44]} 25. Bc4 {[%clk 0:01:16]}  Nd3+ {[%clk 0:00:22]} 26. Kb1 {[%clk 0:01:14]}  Kh7 {[%clk 0:00:15]} 27. f3 {[%clk 0:01:07]}  Qc5 {[%clk 0:00:12]} 28. Qg2 {[%clk 0:00:57]}  Bg7 {[%clk 0:00:03]} 29. Rh1+ {[%clk 0:00:56]}  Kg8 {[%clk 0:00:03]} 30. Ne7# {[%clk 0:00:54]} 1-0


[Site "https://www.chess.com"]

[Event "Titled Tuesday Blitz March 22 Late 2022"]
[White "Iskusnyh, Sergei"]
[Black "Babazada, Khazar"]
[WhiteFideId "4120027"]
[BlackFideId "13413554"]
[WhiteElo "2492"]
[BlackElo "2418"]
[Result "0-1"]
[Round "06"]
[TimeControl "180+1"]
[Date "2022.03.22"]
[WhiteClock "0:00:10"]
[BlackClock "0:01:42"]

1. d4 {[%clk 0:03:00]}  c5 {[%clk 0:02:59]} 2. d5 {[%clk 0:03:00]}  e5 {[%clk 0:02:59]} 3. e4 {[%clk 0:03:00]}  d6 {[%clk 0:02:59]} 4. Bb5+ {[%clk 0:03:00]}  Bd7 {[%clk 0:02:59]} 5. a4 {[%clk 0:03:00]}  g6 {[%clk 0:02:57]} 6. Nf3 {[%clk 0:02:50]}  Bg7 {[%clk 0:02:57]} 7. Nc3 {[%clk 0:02:49]}  Ne7 {[%clk 0:02:57]} 8. O-O {[%clk 0:02:48]}  O-O {[%clk 0:02:56]} 9. Be2 {[%clk 0:02:44]}  h6 {[%clk 0:02:56]} 10. Nd2 {[%clk 0:02:43]}  f5 {[%clk 0:02:55]} 11. Nc4 {[%clk 0:02:43]}  Be8 {[%clk 0:02:52]} 12. f3 {[%clk 0:02:40]}  f4 {[%clk 0:02:48]} 13. Nb5 {[%clk 0:02:39]}  Rf6 {[%clk 0:02:45]} 14. Ra3 {[%clk 0:02:30]}  g5 {[%clk 0:02:45]} 15. Bd2 {[%clk 0:02:19]}  h5 {[%clk 0:02:46]} 16. Ba5 {[%clk 0:02:18]}  b6 {[%clk 0:02:44]} 17. Be1 {[%clk 0:02:18]}  Rg6 {[%clk 0:02:31]} 18. h3 {[%clk 0:02:16]}  a6 {[%clk 0:02:30]} 19. Nc3 {[%clk 0:02:14]}  Bd7 {[%clk 0:02:25]} 20. Rb3 {[%clk 0:02:11]}  Nc8 {[%clk 0:02:25]} 21. Bf2 {[%clk 0:01:57]}  Ra7 {[%clk 0:02:24]} 22. Qd2 {[%clk 0:01:36]}  Bf8 {[%clk 0:02:24]} 23. Na5 {[%clk 0:01:24]}  g4 {[%clk 0:02:17]} 24. fxg4 {[%clk 0:01:22]}  hxg4 {[%clk 0:02:17]} 25. Bxg4 {[%clk 0:01:21]}  Bxg4 {[%clk 0:02:15]} 26. hxg4 {[%clk 0:01:21]}  Rxg4 {[%clk 0:02:05]} 27. Nc6 {[%clk 0:01:19]}  Nxc6 {[%clk 0:02:05]} 28. dxc6 {[%clk 0:01:20]}  Rag7 {[%clk 0:02:06]} 29. Rd1 {[%clk 0:01:11]}  Qg5 {[%clk 0:02:00]} 30. Kf1 {[%clk 0:00:42]}  Rxg2 {[%clk 0:01:59]} 31. Qe1 {[%clk 0:00:32]}  Qh5 {[%clk 0:01:53]} 32. Nd5 {[%clk 0:00:26]}  Kh8 {[%clk 0:01:50]} 33. Rdd3 {[%clk 0:00:22]}  Rh2 {[%clk 0:01:50]} 34. Bg1 {[%clk 0:00:14]}  Rxg1+ {[%clk 0:01:41]} 35. Kxg1 {[%clk 0:00:15]}  Rh1+ {[%clk 0:01:42]} 36. Kg2 {[%clk 0:00:14]}  Qh2+ {[%clk 0:01:43]} 37. Kf3 {[%clk 0:00:13]}  Rxe1 {[%clk 0:01:43]} 38. Kg4 {[%clk 0:00:13]}  Rg1+ {[%clk 0:01:43]} 39. Kf5 {[%clk 0:00:13]}  Qh5+ {[%clk 0:01:43]} 40. Ke6 {[%clk 0:00:14]}  Qe8+ {[%clk 0:01:42]} 41. Kf6 {[%clk 0:00:10]}  Qg6# {[%clk 0:01:42]} 0-1


[Site "https://www.chess.com"]

[Event "Titled Tuesday Blitz March 22 Late 2022"]
[White "Jacobson, Aaron"]
[Black "Fieberg, Samuel"]
[WhiteFideId "2089912"]
[BlackFideId "12901717"]
[WhiteElo "2265"]
[BlackElo "2462"]
[Result "1-0"]
[Round "06"]
[TimeControl "180+1"]
[Date "2022.03.22"]
[WhiteClock "0:00:55"]
[BlackClock "0:00:52"]

1. e4 {[%clk 0:02:59]}  e5 {[%clk 0:02:59]} 2. d4 {[%clk 0:02:56]}  exd4 {[%clk 0:02:58]} 3. Qxd4 {[%clk 0:02:57]}  Nc6 {[%clk 0:02:52]} 4. Qd3 {[%clk 0:02:57]}  g6 {[%clk 0:02:44]} 5. Nc3 {[%clk 0:02:54]}  Bg7 {[%clk 0:02:44]} 6. Bf4 {[%clk 0:02:53]}  d6 {[%clk 0:02:41]} 7. O-O-O {[%clk 0:02:50]}  Be6 {[%clk 0:02:40]} 8. f3 {[%clk 0:02:47]}  a6 {[%clk 0:02:17]} 9. h4 {[%clk 0:02:36]}  Nb4 {[%clk 0:02:14]} 10. Qd2 {[%clk 0:02:33]}  Bxc3 {[%clk 0:02:11]} 11. bxc3 {[%clk 0:02:33]}  Nxa2+ {[%clk 0:02:08]} 12. Kb2 {[%clk 0:02:33]}  c6 {[%clk 0:01:52]} 13. c4 {[%clk 0:02:29]}  Nb4 {[%clk 0:01:36]} 14. Qxb4 {[%clk 0:02:13]}  Qf6+ {[%clk 0:01:36]} 15. Qc3 {[%clk 0:02:14]}  Qxf4 {[%clk 0:01:31]} 16. Qxh8 {[%clk 0:02:14]}  O-O-O {[%clk 0:01:31]} 17. Ne2 {[%clk 0:02:06]}  Qe3 {[%clk 0:01:24]} 18. Qd4 {[%clk 0:02:03]}  Qh6 {[%clk 0:01:21]} 19. c5 {[%clk 0:01:55]}  d5 {[%clk 0:01:20]} 20. Nc3 {[%clk 0:01:55]}  Rd7 {[%clk 0:01:16]} 21. exd5 {[%clk 0:01:47]}  Bxd5 {[%clk 0:01:16]} 22. Bc4 {[%clk 0:01:47]}  Ne7 {[%clk 0:01:13]} 23. Nxd5 {[%clk 0:01:30]}  Nxd5 {[%clk 0:01:10]} 24. Bxd5 {[%clk 0:01:30]}  Rxd5 {[%clk 0:01:09]} 25. Qh8+ {[%clk 0:01:30]}  Kc7 {[%clk 0:01:08]} 26. Rxd5 {[%clk 0:01:31]}  cxd5 {[%clk 0:01:09]} 27. Qf6 {[%clk 0:01:31]}  Qd2 {[%clk 0:01:08]} 28. Qxf7+ {[%clk 0:01:23]}  Kb8 {[%clk 0:01:04]} 29. Qe8+ {[%clk 0:01:10]}  Ka7 {[%clk 0:01:03]} 30. Qa4 {[%clk 0:01:11]}  d4 {[%clk 0:01:02]} 31. Qb3 {[%clk 0:01:07]}  d3 {[%clk 0:00:53]} 32. Qxd3 {[%clk 0:00:56]}  Qb4+ {[%clk 0:00:53]} 33. Qb3 {[%clk 0:00:57]}  Qxc5 {[%clk 0:00:53]} 34. Rd1 {[%clk 0:00:55]}  Qe5+ {[%clk 0:00:52]} 35. Kb1 {[%clk 0:00:55]} 1-0


[Site "https://www.chess.com"]